bitfinex-derivatives/quotes_ETHF0:USTF0_20250701
["timestamp","ask_amount","ask_price","bid_price","bid_amount"]
[1751377494084,0.82145,2433.9,2433.4,6.62694497]
[1751377494085,1.437,2434.0,2433.4,8.05004497]
[1751377494290,0.82146,2433.9,2433.5,0.82155]
[1751377494599,1.437,2434.0,2433.4,9.27352079]
[1751377494790,0.82148,2433.8,2433.5,0.82156]
[1751377495096,0.82148,2433.8,2433.5,2.04503582]
[1751377495288,0.82148,2433.8,2433.5,0.82156]
[1751377495489,0.82151,2433.7,2433.4,8.87164497]
[1751377495689,1.437,2434.0,2433.5,0.82156]
[1751377495898,0.82147,2433.8,2433.5,0.82156]
[1751377496300,0.82145,2433.9,2433.6,0.82153]
[1751377496593,2.2584,2434.0,2433.7,0.82148]
[1751377496803,2.05312,2434.5,2433.7,6.62694497]
[1751377496996,0.82141,2434.0,2433.7,7.44844497]
[1751377497193,0.82141,2434.0,2433.8,31.9]
[1751377497396,0.82139,2434.1,2433.8,32.72146]
[1751377497596,2.05318,2434.4,2433.8,31.9]
[1751377497791,1.4197,2434.3,2433.8,31.9]
[1751377497997,0.82135,2434.2,2433.9,0.82143]
[1751377498201,0.82133,2434.2,2433.9,0.82142]
[1751377498500,1.4197,2434.3,2433.8,33.12347582]
[1751377498694,2.86147,2434.8,2434.0,6.62694497]
[1751377498897,0.82128,2434.4,2434.1,0.82136]
[1751377499096,0.82137,2434.1,2434.0,6.62694497]
[1751377499290,2.05318,2434.4,2433.8,33.12347582]
[1751377499493,2.05318,2434.4,2433.8,31.9]
[1751377499494,1.4197,2434.3,2433.8,31.9]
[1751377499699,2.05334,2434.2,2433.8,31.9]
[1751377499897,0.82142,2434.0,2433.8,31.9]
[1751377500100,1.4197,2434.1,2433.8,31.9]
[1751377500402,0.82133,2434.3,2434.0,0.8214]
[1751377500594,0.82142,2434.0,2433.8,31.9]
[1751377500996,2.05334,2434.2,2433.8,31.9]
[1751377501301,0.82154,2433.6,2433.5,1.22347582]
[1751377501497,0.21410606,2434.5,2433.2,0.82165]
[1751377501498,0.82157,2433.5,2433.3,1.22347582]
[1751377501696,0.82157,2433.5,2433.3,33.94509582]
[1751377501994,2.05389,2433.6,2433.1,1.22347582]
[1751377502199,6.62694497,2434.1,2432.9,1.6313011]
[1751377502200,2.0536,2433.9,2433.0,1.22347582]
[1751377502399,2.05377,2433.7,2433.0,1.22347582]
[1751377502702,0.82174,2433.0,2432.9,1.22347582]
[1751377502892,0.7885,2434.2,2432.8,1.6313011]
[1751377502893,0.82177,2432.9,2432.8,1.22347582]
[1751377503211,2.05417,2433.3,2432.7,33.12347582]
[1751377503504,1.3721,2433.2,2432.7,33.12347582]
[1751377503698,1.3721,2433.2,2432.7,1.22347582]
[1751377503896,1.3721,2433.2,2432.6,1.22347582]
[1751377503897,0.82184,2432.7,2432.6,1.22347582]
[1751377504102,0.82187,2432.6,2432.5,60.42771792]
[1751377504300,0.82187,2432.6,2432.5,33.12171792]
[1751377504908,0.82187,2432.6,2432.5,1.22171792]
[1751377505102,1.4412,2432.9,2432.5,1.22171792]
[1751377505298,0.82183,2432.8,2432.5,1.22171792]
[1751377505500,1.4412,2432.9,2432.5,1.22171792]
[1751377505698,0.82186,2432.7,2432.5,1.22171792]
[1751377505898,2.26299,2432.9,2432.6,6.62694497]
[1751377506102,0.82171,2433.1,2432.8,0.8218]
[1751377506298,0.82174,2433.0,2432.9,1.22171792]
[1751377506507,0.82175,2433.0,2432.8,1.22171792]
[1751377506810,0.82175,2433.0,2432.9,1.22171792]
[1751377507105,0.82177,2432.9,2432.8,1.22171792]
[1751377507305,2.17827,2432.9,2432.8,1.22171792]
[1751377508711,2.17827,2432.9,2432.8,0.76306958]
[1751377509101,0.82175,2433.0,2432.8,0.76306958]
[1751377509401,0.82174,2433.0,2432.8,1.6313011]
[1751377509803,2.117,2433.3,2432.7,9.07389662]
[1751377510106,2.05371,2433.8,2433.0,6.62694497]
[1751377510302,0.8216,2433.5,2433.2,2.45466255]
[1751377510499,0.82161,2433.4,2433.2,1.63300255]
[1751377510702,1.3865,2433.7,2433.4,0.8216]
[1751377511006,2.05343,2434.1,2433.6,6.62694497]
[1751377511206,1.3865,2434.1,2433.6,1.63300255]
[1751377511403,0.8214,2434.0,2433.6,2.45452255]
[1751377511604,0.82144,2433.9,2433.7,1.63300255]
[1751377511808,2.0531,2434.5,2433.8,1.63300255]
[1751377512101,0.82135,2434.2,2433.8,1.63300255]
[1751377512302,2.05306,2434.6,2433.9,0.82141]
[1751377512609,0.82131,2434.3,2434.0,2.45440255]
[1751377512807,0.82128,2434.4,2434.1,0.82137]
[1751377513002,0.82128,2434.4,2434.0,2.45439255]
[1751377513204,1.3731,2434.3,2434.1,0.82135]
[1751377513404,2.8151,2435.0,2434.3,0.82129]
[1751377513703,1.3731,2434.7,2434.4,0.82125]
[1751377513912,1.3731,2434.7,2434.5,0.82122]
[1751377514212,1.58349,2435.0,2434.6,0.82119]
[1751377514412,0.82111,2434.9,2434.5,0.82122]
[1751377514606,2.19411,2435.2,2434.8,0.82112]
[1751377514913,0.8146,2435.8,2434.9,6.62694497]
[1751377515209,1.3731,2435.5,2435.2,0.82099]
[1751377515412,2.19402,2435.5,2434.9,6.62694497]
[1751377515610,1.3731,2435.5,2434.9,6.62694497]
[1751377515810,1.3731,2435.5,2434.9,8.25994752]
[1751377516010,1.3731,2435.5,2435.0,1.63300255]
[1751377516208,1.3731,2435.5,2435.0,0.82105]
[1751377516411,0.82093,2435.4,2435.1,0.82103]
[1751377516611,1.4086,2435.3,2435.0,0.82106]
[1751377516811,1.4086,2435.3,2435.0,0.82105]
[1751377517012,2.22957,2435.3,2435.0,0.82105]
[1751377517311,1.4086,2435.3,2434.8,8.25994752]
[1751377517512,2.22959,2435.3,2434.8,8.25994752]
[1751377517811,2.22956,2435.3,2435.0,0.82105]
[1751377518011,1.4086,2435.3,2435.0,0.82105]
[1751377518211,1.4086,2435.3,2434.8,8.25994752]
[1751377518507,0.82112,2434.9,2434.6,1.63300255]
[1751377518704,0.82114,2434.8,2434.6,1.63300255]
[1751377518905,0.82115,2434.8,2434.6,1.63300255]
[1751377519105,0.82115,2434.8,2434.5,59.99323]
[1751377519106,0.8212,2434.6,2434.5,1.63300255]
[1751377519314,2.05283,2434.9,2434.4,1.63300255]
[1751377519511,2.20613,2434.5,2434.4,1.63300255]
[1751377519816,0.82128,2434.4,2434.2,2.44695165]
[1751377520013,2.20618,2434.4,2434.1,0.82134]
[1751377520209,2.81138,2434.8,2434.1,2.44695165]
[1751377520409,2.20609,2434.7,2434.4,0.82125]
[1751377520608,1.3849,2434.7,2434.3,0.82129]
[1751377520917,1.3849,2434.7,2434.2,9.07389662]
[1751377520918,0.82111,2434.9,2434.6,0.82118]
[1751377521209,2.20598,2435.0,2434.7,0.82117]
[1751377521422,1.3849,2435.0,2434.7,0.82117]
[1751377521611,2.05226,2435.5,2434.8,0.82111]
[1751377521814,0.82102,2435.2,2434.8,0.82111]
[1751377522007,1.3849,2435.3,2434.5,6.62694497]
[1751377522306,1.3849,2435.3,2434.5,8.68001497]
[1751377522511,1.3849,2435.3,2434.8,0.82112]
[1751377522712,2.0525,2435.2,2434.2,67.84127497]
[1751377522915,0.82124,2434.5,2434.2,59.161]
[1751377523106,0.82116,2434.8,2434.4,0.82126]
[1751377523307,1.3155,2435.1,2434.3,7.44822497]
[1751377523508,1.3155,2435.1,2434.4,0.82126]
[1751377523715,0.82112,2434.9,2434.5,0.82121]
[1751377523913,0.82112,2434.9,2434.6,0.82118]
[1751377524215,1.3155,2435.1,2434.3,0.82129]
[1751377524419,0.8212,2434.6,2434.3,0.82129]
[1751377524620,0.8212,2434.6,2434.3,1.3215]
[1751377524817,2.05267,2435.0,2434.3,1.3215]
[1751377525013,0.82115,2434.8,2434.3,1.3215]
[1751377525215,1.3155,2434.9,2434.6,0.8212]
[1751377525411,2.05242,2435.3,2434.3,1.3215]
[1751377525412,2.05242,2435.3,2434.5,6.62694497]
[1751377525614,1.3433,2435.2,2434.5,6.62694497]
[1751377525814,0.82104,2435.1,2434.6,1.3596]
[1751377526014,0.82107,2435.0,2434.7,0.82115]
[1751377526418,2.16433,2435.2,2434.8,0.82113]
[1751377526620,2.16433,2435.2,2434.9,0.82109]
[1751377526917,0.82099,2435.3,2435.0,0.82104]
[1751377527215,0.82098,2435.3,2434.9,0.82109]
[1751377527423,0.82094,2435.4,2434.8,6.62694497]
[1751377527816,0.82094,2435.4,2435.1,0.82103]
[1751377528214,1.3433,2435.6,2434.8,6.62694497]
[1751377528622,0.82096,2435.4,2435.0,0.82104]
[1751377528810,0.8209,2435.5,2435.2,0.82098]
[1751377529014,1.3595,2435.4,2435.2,0.82098]
[1751377529223,0.82086,2435.7,2435.4,0.82093]
[1751377529519,1.3595,2435.9,2435.4,6.62694497]
[1751377529721,1.3595,2435.9,2435.6,0.82084]
[1751377529722,2.18026,2435.9,2435.6,0.82084]
[1751377529917,0.82075,2436.0,2435.4,8.67926497]
[1751377530122,1.57415453,2436.2,2435.4,8.67926497]
[1751377530418,0.8207,2436.1,2435.8,0.82078]
[1751377530619,2.18018,2436.2,2435.6,2.05216]
[1751377530820,1.3595,2436.2,2435.4,8.67925497]
[1751377531123,1.3595,2436.2,2435.6,0.82083]
[1751377531320,0.82075,2436.0,2435.7,0.82083]
[1751377531620,1.3595,2436.2,2435.9,0.82075]
[1751377531621,2.18017,2436.2,2435.9,0.82075]
[1751377531817,0.21048711,2436.5,2435.7,6.62694497]
[1751377532023,0.21048711,2436.5,2435.6,0.82085]
[1751377532024,0.82057,2436.5,2436.1,0.82068]
[1751377532218,0.82057,2436.5,2436.0,6.62694497]
[1751377532418,2.05112,2436.9,2436.1,1.3572]
[1751377532619,0.82062,2436.4,2436.0,6.62694497]
[1751377532824,1.35,2436.8,2436.0,6.62694497]
[1751377533030,3.40122,2436.8,2436.0,8.80484497]
[1751377533219,3.40122,2436.8,2436.0,0.82073]
[1751377533220,0.82061,2436.4,2436.0,0.82073]
[1751377533419,0.82063,2436.3,2436.0,0.82073]
[1751377533616,0.82063,2436.3,2435.9,1.62154]
[1751377533821,0.82066,2436.2,2436.0,1.3572]
[1751377534021,3.40135,2436.6,2435.9,0.8008]
[1751377534217,0.82059,2436.5,2436.0,6.62694497]
[1751377534424,1.35,2436.6,2436.0,8.86144497]
[1751377534729,1.35,2436.6,2436.0,8.04074497]
[1751377534925,0.82062,2436.4,2436.0,8.04074497]
[1751377535114,0.82067,2436.2,2435.9,0.8008]
[1751377535426,0.82057,2436.5,2436.1,0.82067]
[1751377535726,0.82059,2436.4,2436.1,0.82067]
[1751377536029,0.82071,2436.1,2435.9,31.9]
[1751377536434,0.82071,2436.1,2435.8,0.82079]
[1751377536726,0.82068,2436.2,2435.9,0.82076]
[1751377537228,3.45823,2436.3,2435.7,0.82081]
[1751377537422,4.31848744,2436.9,2435.9,6.62694497]
[1751377537423,0.7813,2436.6,2435.9,6.62694497]
[1751377537618,2.229,2436.6,2435.9,7.97294497]
[1751377537928,0.82056,2436.5,2436.2,0.82063]
[1751377538125,1.4477,2436.6,2436.0,2.05183]
[1751377538318,2.26823,2436.6,2436.3,0.8206]
[1751377538525,3.49903,2436.6,2436.0,0.82071]
[1751377538830,1.4477,2436.6,2435.8,31.9]
[1751377539228,0.82058,2436.5,2436.2,0.82065]
[1751377539529,2.26825,2436.6,2436.3,0.82061]
[1751377539727,2.0507,2437.4,2436.3,8.67851497]
[1751377539923,0.82042,2437.0,2436.7,0.82048]
[1751377540117,1.4477,2437.1,2436.4,1.346]
[1751377540326,1.4477,2437.1,2436.9,0.82041]
[1751377540527,1.4477,2437.1,2436.8,0.82045]
[1751377540723,1.4477,2437.1,2436.9,0.82043]
[1751377541027,1.4477,2437.1,2436.9,0.82041]
[1751377541228,1.4477,2437.1,2436.6,8.04454497]
[1751377541618,1.4477,2437.1,2436.1,3.25725165]
[1751377541825,2.05108,2436.9,2436.1,0.8103]
[1751377542124,0.82058,2436.5,2436.1,1.63098]
[1751377542325,0.82062,2436.4,2436.1,0.8103]
[1751377542627,1.3258,2436.4,2435.9,6.62694497]
[1751377542824,0.82064,2436.3,2436.0,0.82072]
[1751377543133,2.14641,2436.4,2436.0,0.8207]
[1751377543430,2.14641,2436.4,2435.9,6.62694497]
[1751377543629,0.82063,2436.3,2436.0,0.82071]
[1751377543832,0.82066,2436.2,2435.9,8.76259497]
[1751377544127,2.14641,2436.4,2436.1,0.82068]
[1751377544326,1.3258,2436.4,2436.0,0.82071]
[1751377544530,2.14643,2436.4,2436.1,0.8207]
[1751377544725,2.14643,2436.4,2436.0,2.13561]
[1751377545027,0.82065,2436.3,2436.0,2.13562]
[1751377545331,0.82065,2436.3,2436.0,1.3149]
[1751377545829,1.3258,2436.4,2436.0,0.8207]
[1751377546030,2.1464,2436.4,2436.0,0.8207]
[1751377546339,1.3258,2436.4,2435.9,6.62694497]
[1751377546524,1.3258,2436.4,2435.9,0.82075]
[1751377546718,2.14642,2436.4,2436.1,0.82069]
[1751377546929,1.3258,2436.4,2436.2,0.82065]
[1751377547323,1.3258,2436.4,2436.1,0.82067]
[1751377547524,1.3258,2436.4,2436.2,0.82065]
[1751377547725,1.3258,2436.4,2435.8,34.34695165]
[1751377547920,1.3258,2436.4,2436.2,0.82063]
[1751377548230,0.8205,2436.7,2436.4,0.82057]
[1751377548430,0.82053,2436.6,2436.3,0.8206]
[1751377548629,1.3574,2436.5,2436.4,0.8206]
[1751377549528,1.3574,2436.5,2436.3,0.82061]
[1751377549730,0.82051,2436.7,2436.4,0.82057]
[1751377549930,2.1444,2436.8,2436.0,1.62733899]
[1751377550130,0.82057,2436.5,2436.2,0.82064]
[1751377550334,2.20605,2436.6,2436.3,0.82062]
[1751377550533,0.82056,2436.5,2436.2,0.82064]
[1751377550830,1.3855,2436.5,2436.0,1.62733899]
[1751377551131,1.3855,2436.5,2436.3,0.8206]
[1751377551528,1.3855,2436.5,2436.4,0.82059]
[1751377551725,0.7589,2436.8,2436.2,6.62694497]
[1751377551926,0.7589,2436.8,2436.4,0.82056]
[1751377552126,2.20598,2436.8,2436.5,0.82054]
[1751377552725,1.3855,2436.8,2436.4,2.05149]
[1751377552927,0.7601,2437.3,2436.7,4.10245]
[1751377553132,1.4142,2437.5,2437.3,0.82028]
[1751377553633,2.23444,2437.5,2437.0,6.62694497]
[1751377553832,1.4142,2437.5,2437.0,6.62694497]
[1751377554033,1.4142,2437.5,2436.7,6.62694497]
[1751377554235,0.82031,2437.3,2437.0,0.82038]
[1751377554434,1.4142,2437.5,2437.1,0.82036]
[1751377554435,0.82028,2437.4,2437.1,0.82036]
[1751377554634,1.4142,2437.5,2436.7,8.67817497]
[1751377554829,1.4142,2437.5,2437.0,2.05099]
[1751377555035,0.82015,2437.8,2437.5,0.82021]
[1751377555331,2.05085,2437.2,2436.3,1.62733899]
[1751377555530,0.82051,2436.7,2436.3,0.8206]
[1751377555730,1.338,2436.6,2436.3,2.44793899]
[1751377555927,2.15855,2436.6,2436.4,1.62733899]
[1751377556329,0.82056,2436.5,2436.3,3.26757165]
[1751377556532,2.15855,2436.6,2436.3,3.26757165]
[1751377556730,2.15855,2436.6,2436.5,1.63065656]
[1751377556933,2.15853,2436.6,2436.5,1.63065656]
[1751377557433,12.96494497,2436.6,2435.7,3.26296185]
[1751377557633,6.62694497,2436.2,2435.7,2.94796185]
[1751377557833,1.338,2436.1,2435.6,0.82084]
[1751377558034,2.05183,2436.0,2435.2,0.7918]
[1751377558239,0.82085,2435.7,2435.4,0.82091]
[1751377558541,1.338,2435.6,2435.1,31.9]
[1751377558743,1.338,2435.6,2435.0,5.70955386]
[1751377558946,2.15887,2435.6,2435.3,0.82094]
[1751377559138,1.338,2435.6,2435.4,0.82092]
[1751377559438,1.63791,2436.1,2435.4,6.62694497]
[1751377559639,0.82075,2436.0,2435.6,0.82086]
[1751377559936,1.4296,2436.3,2435.7,0.82083]
[1751377560441,2.25024,2436.3,2436.0,0.82071]
[1751377560630,1.4296,2436.3,2436.0,0.82071]
[1751377560832,1.4296,2436.3,2435.8,0.82077]
[1751377561036,1.4296,2436.3,2435.9,0.82075]
[1751377561037,0.82068,2436.2,2435.9,0.82075]
[1751377561334,1.4296,2436.3,2435.6,2.05217]
[1751377561536,1.3898,2436.8,2436.1,6.62694497]
[1751377561838,1.3898,2436.8,2436.1,0.82069]
[1751377561839,0.82061,2436.4,2436.1,0.82069]
[1751377562033,0.82061,2436.4,2435.7,4.81131]
[1751377562034,2.05132,2436.6,2435.7,1.3718]
[1751377562239,0.82071,2436.1,2435.8,0.82079]
[1751377562543,2.24056,2436.3,2435.8,0.8208]
[1751377562843,0.82049,2436.7,2436.1,6.62694497]
[1751377563044,1.3898,2436.8,2436.1,6.62694497]
[1751377563242,0.82046,2436.8,2436.4,0.82057]
[1751377564040,0.82046,2436.8,2436.2,1.4108]
[1751377564242,0.82047,2436.8,2436.4,0.82059]
[1751377564448,0.82053,2436.6,2436.3,0.82061]
[1751377564646,2.24034,2436.9,2436.3,0.82061]
[1751377564846,1.4199,2436.9,2436.2,1.4108]
[1751377565042,2.24035,2436.9,2436.2,2.23144]
[1751377565240,1.4199,2436.9,2436.3,0.82063]
[1751377565441,1.4199,2436.9,2436.4,0.82057]
[1751377565640,1.4199,2436.9,2436.3,0.8206]
[1751377565837,1.4199,2436.9,2436.4,0.82057]
[1751377566042,1.4199,2436.9,2436.6,0.8205]
[1751377566252,0.82033,2437.2,2436.6,0.8205]
[1751377566447,2.22161,2437.3,2436.7,0.82049]
[1751377566747,1.4013,2437.1,2436.7,0.82049]
[1751377567045,1.4013,2437.1,2436.4,1.3165]
[1751377567245,0.82041,2437.0,2436.1,8.67866497]
[1751377567548,1.4013,2436.9,2436.8,0.82046]
[1751377567949,1.4013,2436.9,2436.6,0.82051]
[1751377568440,3.1774806,2437.3,2436.8,2.05116]
[1751377568645,3.1774806,2437.5,2437.0,8.67793497]
[1751377568849,3.1774806,2437.5,2437.0,6.62694497]
[1751377569140,3.1774806,2437.7,2437.5,0.82021]
[1751377569346,3.1774806,2437.7,2437.0,3.48183]
[1751377569542,3.1774806,2437.7,2437.6,0.82019]
[1751377569747,3.1774806,2437.8,2437.0,10.10877497]
[1751377570043,3.9976406,2437.7,2437.2,0.82031]
[1751377570244,3.9976406,2437.7,2437.0,8.05784497]
[1751377570245,1.3333,2437.6,2437.3,0.82027]
[1751377570446,1.3333,2437.6,2437.0,10.10880497]
[1751377570645,1.3333,2437.6,2437.0,8.05784497]
[1751377571249,3.1774806,2437.8,2437.2,0.82031]
[1751377571450,1.4318,2437.5,2437.1,0.82034]
[1751377571750,3.1774806,2437.8,2437.0,6.62694497]
[1751377571945,3.9976006,2437.8,2437.2,0.82031]
[1751377572150,1.4318,2437.7,2437.1,1.4391]
[1751377572742,0.82027,2437.4,2436.9,0.82043]
[1751377572943,1.4318,2437.3,2436.7,0.82047]
[1751377573248,1.4318,2437.3,2436.7,31.9]
[1751377573648,1.4318,2437.3,2436.3,1.3798]
[1751377573851,1.4318,2437.3,2436.3,3.43137]
[1751377574048,0.82034,2437.2,2436.7,0.82048]
[1751377574349,1.3985,2437.1,2436.7,0.82048]
[1751377574549,2.21887,2437.1,2436.6,0.82052]
[1751377574755,5.2277006,2438.0,2437.1,0.82036]
[1751377574949,5.2277006,2438.0,2436.7,8.67818497]
[1751377574950,1.3985,2437.7,2436.8,1.4022]
[1751377575245,0.8203,2437.3,2436.9,0.82042]
[1751377575446,1.3985,2437.7,2436.8,1.4022]
[1751377575643,3.44894,2437.7,2437.0,0.82039]
[1751377575845,0.82033,2437.3,2436.8,2.22264]
[1751377576049,0.82043,2436.9,2436.5,0.82056]
[1751377576246,3.44935,2437.2,2436.4,0.82058]
[1751377576549,2.21897,2436.8,2436.4,0.82058]
[1751377576942,1.3985,2436.8,2436.6,3.27324758]
[1751377577349,1.3985,2436.8,2436.7,0.8205]
[1751377577851,0.82038,2437.1,2436.7,0.8205]
[1751377578048,2.19016,2437.2,2436.9,2.45387786]
[1751377578246,2.19016,2437.2,2437.0,2.45387786]
[1751377578247,2.23746,2437.1,2437.0,2.45387786]
[1751377578450,0.8204,2437.0,2436.9,2.45387786]
[1751377578653,0.82043,2436.9,2436.8,2.45387786]
[1751377578857,2.2375,2437.0,2436.8,2.45387786]
[1751377579061,0.82043,2436.9,2436.6,3.27438786]
[1751377579355,1.3698,2437.2,2436.8,2.45387786]
[1751377579555,0.82042,2437.0,2436.8,2.45387786]
[1751377579750,4.10067,2437.8,2436.7,0.82047]
[1751377579751,2.05018,2438.0,2436.9,2.45387786]
[1751377579958,0.82034,2437.2,2436.9,0.82041]
[1751377580160,2.05066,2437.4,2436.8,2.45387786]
[1751377580355,3.41326,2437.4,2436.7,2.45387786]
[1751377580556,2.05083,2437.2,2436.6,2.45387786]
[1751377580757,0.8205,2436.7,2436.5,2.45387786]
[1751377580958,0.82053,2436.6,2436.5,2.45387786]
[1751377581158,1.3626,2436.9,2436.5,2.45387786]
[1751377581358,1.3626,2436.9,2436.4,3.27446786]
[1751377581572,0.82052,2436.7,2436.4,3.27446786]
[1751377581774,0.82052,2436.7,2436.2,1.3164]
[1751377581775,1.3626,2436.9,2436.3,2.45387786]
[1751377581966,1.3626,2436.9,2436.5,0.82056]
[1751377582166,3.41377,2436.9,2436.3,2.45387786]
[1751377582370,0.8206,2436.5,2436.3,2.45387786]
[1751377582776,0.82054,2436.6,2436.4,0.82059]
[1751377582973,0.82054,2436.6,2436.3,3.27448786]
[1751377583272,1.3626,2436.7,2436.3,2.45387786]
[1751377583476,2.05092,2437.1,2436.4,2.45387786]
[1751377583678,0.82049,2436.8,2436.5,0.82056]
[1751377583880,0.82049,2436.8,2436.4,3.27445786]
[1751377584072,0.8205,2436.7,2436.4,3.27445786]
[1751377584378,0.82048,2436.8,2436.5,0.82055]
[1751377584576,1.3828,2437.0,2436.5,0.82055]
[1751377584781,1.3828,2437.0,2436.9,0.82043]
[1751377585074,3.43339,2437.5,2436.7,2.45387786]
[1751377585280,0.82033,2437.3,2436.9,0.82042]
[1751377585479,0.82034,2437.2,2436.8,0.82044]
[1751377585978,1.3828,2437.5,2436.6,3.37992]
[1751377586176,2.05066,2437.4,2436.6,1.3286]
[1751377586372,0.82045,2436.9,2436.5,0.82055]
[1751377586570,0.82046,2436.9,2436.3,4.75943]
[1751377586774,0.82042,2437.0,2436.6,0.82051]
[1751377586974,0.82044,2436.9,2436.5,0.82054]
[1751377587176,0.82042,2437.0,2436.6,0.82052]
[1751377587381,0.82042,2437.0,2436.3,4.75943]
[1751377587579,2.25883,2436.9,2436.5,0.82055]
[1751377587882,2.25885,2436.9,2436.5,0.82055]
[1751377588071,1.4384,2436.9,2436.4,31.9]
[1751377588273,2.25886,2436.9,2436.5,0.82056]
[1751377588474,0.82047,2436.8,2436.4,0.82057]
[1751377588676,0.82052,2436.7,2436.3,1.3112]
[1751377588874,0.82052,2436.7,2435.6,6.62694497]
[1751377588875,2.05134,2436.6,2435.6,6.62694497]
[1751377589076,2.05151,2436.4,2435.5,2.7758]
[1751377589270,0.8207,2436.1,2435.7,0.82082]
[1751377589478,0.8207,2436.1,2435.6,0.82084]
[1751377589679,1.3618,2436.3,2435.6,3.42347]
[1751377589875,1.3618,2436.3,2435.6,7.99824497]
[1751377590078,1.3618,2436.3,2435.6,1.3713]
[1751377590277,1.3618,2436.3,2435.5,33.2791]
[1751377590478,0.82085,2435.7,2435.5,1.3791]
[1751377590778,0.82088,2435.6,2435.1,0.82102]
[1751377590976,0.82091,2435.5,2435.1,1.3713]
[1751377591175,0.82092,2435.5,2435.1,1.3713]
[1751377591372,3.41384,2435.8,2435.0,59.096]
[1751377591581,0.82097,2435.4,2435.0,59.096]
[1751377591881,1.3618,2435.3,2435.0,59.91705]
[1751377592076,1.363,2435.8,2435.0,59.096]
[1751377592276,2.21507,2435.7,2435.1,0.82101]
[1751377592477,1.3942,2435.7,2435.3,0.82096]
[1751377592774,1.3942,2435.7,2435.2,0.82098]
[1751377593277,1.3942,2435.7,2435.3,0.82096]
[1751377593478,1.3942,2435.7,2435.1,6.62694497]
[1751377593776,0.82087,2435.6,2435.1,2.19302]
[1751377593983,0.82101,2435.2,2434.7,0.82115]
[1751377594176,1.3942,2435.1,2434.7,0.82115]
[1751377594380,1.363,2435.8,2434.8,6.62694497]
[1751377594676,0.82089,2435.6,2435.0,0.82105]
[1751377594877,2.1838,2435.8,2434.9,2.05277]
[1751377595078,2.1838,2435.8,2435.5,0.82088]
[1751377595079,1.3942,2435.7,2435.5,0.82088]
[1751377595283,1.3942,2435.7,2435.6,0.82087]
[1751377595580,1.3942,2435.7,2435.5,0.82088]
[1751377595781,1.3942,2435.7,2435.4,0.82091]
[1751377596183,2.21505,2435.7,2434.9,4.79256]
[1751377596378,1.3942,2435.7,2435.6,0.82087]
[1751377596579,0.82069,2436.2,2435.7,0.82081]
[1751377596777,2.20071,2436.1,2435.6,0.82085]
[1751377596983,1.38,2436.1,2435.8,0.82078]
[1751377597183,1.38,2436.1,2435.6,2.05213]
[1751377597482,1.38,2436.1,2435.9,0.82077]
[1751377597682,1.38,2436.1,2435.8,0.82079]
[1751377597878,1.38,2436.1,2435.4,10.01099497]
[1751377598077,1.38,2436.1,2436.0,0.82074]
[1751377598378,1.38,2436.1,2435.9,0.82074]
[1751377598581,1.38,2436.1,2435.4,10.01099497]
[1751377598783,1.38,2436.1,2435.6,2.05218]
[1751377598983,1.38,2436.1,2435.9,0.82074]
[1751377599279,1.38,2436.1,2436.0,0.82074]
[1751377599672,1.65376799,2436.4,2436.3,0.82063]
[1751377599883,0.24046799,2436.4,2436.2,0.82064]
[1751377600182,1.3404,2436.5,2436.2,0.82064]
[1751377600481,1.3404,2436.5,2436.3,0.82063]
[1751377600786,1.57440023,2436.5,2436.3,0.82063]
[1751377601084,1.57440023,2436.5,2436.4,0.8206]
[1751377601291,1.3404,2436.5,2436.4,0.8206]
[1751377601776,1.3404,2436.5,2436.3,0.82062]
[1751377601973,1.3404,2436.5,2436.4,0.8206]
[1751377602177,1.3404,2436.5,2436.1,0.82069]
[1751377602383,1.3404,2436.5,2436.2,0.82066]
[1751377602579,1.3404,2436.5,2435.8,2.052]
[1751377602787,1.3404,2436.5,2436.3,0.82062]
[1751377603182,1.2896,2436.9,2436.4,2.05148]
[1751377603379,1.2896,2436.9,2436.7,0.82048]
[1751377603783,3.43005,2436.9,2436.6,0.82052]
[1751377604180,2.6096,2436.9,2436.7,0.8205]
[1751377604383,1.32,2436.9,2436.3,1.43]
[1751377604986,0.23434741,2437.1,2436.5,5.79629737]
[1751377605182,1.333,2437.3,2436.5,5.79629737]
[1751377605382,1.333,2437.3,2436.3,7.22629737]
[1751377605785,1.333,2437.3,2436.3,1.43]
[1751377606387,7.92899158,2437.3,2436.0,59.113]
[1751377606589,6.59599158,2437.0,2436.0,59.113]
[1751377606788,1.333,2436.9,2436.0,59.113]
[1751377607690,1.333,2436.9,2436.1,1.3653]
[1751377611586,1.4171,2437.2,2436.3,6.59599158]
[1751377611791,1.4171,2437.2,2436.4,1.3508]
[1751377614590,1.4171,2437.2,2436.5,1.292]
[1751377614785,1.4171,2437.2,2436.6,1.3961]
[1751377615591,0.23839217,2437.3,2436.6,1.3961]
[1751377615791,2.835,2437.4,2436.6,1.3961]
[1751377616491,1.3581,2437.5,2436.6,7.99209158]
[1751377616985,1.3581,2437.5,2436.7,1.2911]
[1751377617191,1.5948347,2437.5,2436.8,1.3474]
[1751377617793,1.3581,2437.5,2436.8,1.3474]
[1751377617993,6.59599158,2438.1,2436.9,6.59599158]
[1751377618196,1.4076,2438.0,2437.0,1.3474]
[1751377620395,1.4076,2438.0,2436.7,1.2911]
[1751377620697,1.4076,2438.0,2436.8,1.4545]
[1751377622594,1.4076,2438.0,2436.8,3.0897116]
[1751377622595,6.59599158,2437.8,2436.8,3.0897116]
[1751377622793,1.3866,2437.7,2436.8,3.0897116]
[1751377622994,6.59599158,2437.5,2436.7,2.9263116]
[1751377623194,2.7942,2437.4,2436.6,1.6352116]
[1751377623596,2.7942,2437.4,2436.7,1.6352116]